[Event "Late-Titled-Tuesday-Blitz-January-23-2024"]
[Site "Chess.com"]
[Date "2024.01.23"]
[Round "6"]
[White "Kamilek84"]
[Black "Fandorine"]
[Result "0-1"]
[WhiteElo "2704"]
[BlackElo "2979"]
[TimeControl "180+1"]
[EndTime "15:04:29 PST"]
[Termination "Fandorine won on time"]

1. e4 {[%clk 0:03:00.9]} 1... e5 {[%clk 0:02:58.5]} 2. Nf3 {[%clk 0:03:00.6]}
2... Nc6 {[%clk 0:02:59.1]} 3. Bc4 {[%clk 0:02:59.9]} 3... Nf6 {[%clk 0:02:59]}
4. d3 {[%clk 0:02:59.6]} 4... Bc5 {[%clk 0:02:58.8]} 5. Nc3 {[%clk 0:02:55.8]}
5... d6 {[%clk 0:02:59]} 6. Na4 {[%clk 0:02:47.5]} 6... Bb6 {[%clk 0:02:58.8]}
7. Nxb6 {[%clk 0:02:43.7]} 7... axb6 {[%clk 0:02:59.7]} 8. a3 {[%clk 0:02:30.6]}
8... h6 {[%clk 0:02:59.6]} 9. h3 {[%clk 0:02:30.1]} 9... O-O {[%clk 0:02:57.7]}
10. O-O {[%clk 0:02:24.3]} 10... Ne7 {[%clk 0:02:51.6]} 11. Re1 {[%clk
0:02:21.6]} 11... Ng6 {[%clk 0:02:49.5]} 12. d4 {[%clk 0:02:21.3]} 12... Qe7
{[%clk 0:02:39.8]} 13. Bd3 {[%clk 0:02:16.7]} 13... Bd7 {[%clk 0:02:35.6]} 14.
c4 {[%clk 0:02:10.3]} 14... c5 {[%clk 0:02:31.5]} 15. dxe5 {[%clk 0:02:07.1]}
15... dxe5 {[%clk 0:02:29.3]} 16. Nh2 {[%clk 0:02:04.9]} 16... Nh7 {[%clk
0:02:10.4]} 17. Nf1 {[%clk 0:02:02.8]} 17... Nf4 {[%clk 0:02:10.9]} 18. Bxf4
{[%clk 0:01:33.4]} 18... exf4 {[%clk 0:02:10.1]} 19. e5 {[%clk 0:01:33.6]} 19...
Ng5 {[%clk 0:02:04.2]} 20. Nh2 {[%clk 0:01:27.3]} 20... Rad8 {[%clk 0:01:56.8]}
21. Qe2 {[%clk 0:01:24]} 21... Bc6 {[%clk 0:01:52.7]} 22. h4 {[%clk 0:00:54.2]}
22... Ne6 {[%clk 0:01:51.2]} 23. Nf3 {[%clk 0:00:50.3]} 23... Nd4 {[%clk
0:01:37.1]} 24. Nxd4 {[%clk 0:00:34.7]} 24... Rxd4 {[%clk 0:01:38]} 25. f3
{[%clk 0:00:27.6]} 25... Qxh4 {[%clk 0:01:21.1]} 26. e6 {[%clk 0:00:27.8]} 26...
Re8 {[%clk 0:01:19.5]} 27. Bf5 {[%clk 0:00:13.5]} 27... Qf6 {[%clk 0:01:02.7]}
28. Bh3 {[%clk 0:00:10.6]} 28... fxe6 {[%clk 0:01:03]} 29. Rad1 {[%clk
0:00:09.3]} 29... e5 {[%clk 0:00:54.2]} 30. b4 {[%clk 0:00:09.1]} 30... Ba4
{[%clk 0:00:41.9]} 31. Rxd4 {[%clk 0:00:05]} 31... exd4 {[%clk 0:00:42.1]} 32.
Qxe8+ {[%clk 0:00:03.4]} 32... Bxe8 {[%clk 0:00:43]} 33. Rxe8+ {[%clk
0:00:02.9]} 33... Kf7 {[%clk 0:00:43.6]} 34. Rb8 {[%clk 0:00:01.3]} 34... Qe7
{[%clk 0:00:43]} 0-1

[Event "Late-Titled-Tuesday-Blitz-January-23-2024"]
[Site "Chess.com"]
[Date "2024.01.23"]
[Round "6"]
[White "ErikRonka"]
[Black "smotherhubbard"]
[Result "0-1"]
[WhiteElo "2472"]
[BlackElo "2351"]
[TimeControl "180+1"]
[EndTime "15:04:33 PST"]
[Termination "smotherhubbard won on time"]

1. e4 {[%clk 0:03:00.9]} 1... e6 {[%clk 0:03:00]} 2. d4 {[%clk 0:02:57]} 2... d5
{[%clk 0:03:00.5]} 3. exd5 {[%clk 0:02:57.9]} 3... exd5 {[%clk 0:03:00.1]} 4.
Nf3 {[%clk 0:02:58.8]} 4... Bd6 {[%clk 0:02:59.6]} 5. c4 {[%clk 0:02:58.7]} 5...
Nf6 {[%clk 0:02:58.9]} 6. Nc3 {[%clk 0:02:58.9]} 6... O-O {[%clk 0:02:57.8]} 7.
cxd5 {[%clk 0:02:58.8]} 7... Bg4 {[%clk 0:02:50.6]} 8. Be2 {[%clk 0:02:57.5]}
8... Nbd7 {[%clk 0:02:50.7]} 9. O-O {[%clk 0:02:56.8]} 9... Nb6 {[%clk
0:02:50.6]} 10. Bg5 {[%clk 0:02:55.9]} 10... h6 {[%clk 0:02:48.2]} 11. Bh4
{[%clk 0:02:50.4]} 11... Be7 {[%clk 0:02:43.4]} 12. Bxf6 {[%clk 0:02:24.1]}
12... Bxf6 {[%clk 0:02:42.7]} 13. Qb3 {[%clk 0:02:24.7]} 13... Re8 {[%clk
0:02:22.7]} 14. Rfe1 {[%clk 0:02:23.6]} 14... Qd7 {[%clk 0:02:19.3]} 15. Rad1
{[%clk 0:02:21.8]} 15... Rad8 {[%clk 0:02:16.9]} 16. Bb5 {[%clk 0:02:12.9]}
16... c6 {[%clk 0:02:16.2]} 17. dxc6 {[%clk 0:02:04.2]} 17... bxc6 {[%clk
0:02:17.1]} 18. Be2 {[%clk 0:01:58.6]} 18... Rb8 {[%clk 0:02:11.6]} 19. Qc2
{[%clk 0:01:54.8]} 19... Nd5 {[%clk 0:02:10.5]} 20. Nxd5 {[%clk 0:01:49.7]}
20... Qxd5 {[%clk 0:02:09]} 21. Bc4 {[%clk 0:01:49.4]} 21... Qh5 {[%clk
0:02:05]} 22. Be2 {[%clk 0:01:25.8]} 22... c5 {[%clk 0:01:57.6]} 23. h3 {[%clk
0:01:22.8]} 23... Bf5 {[%clk 0:01:54.9]} 24. Bd3 {[%clk 0:01:17.6]} 24... Bxh3
{[%clk 0:01:40.3]} 25. dxc5 {[%clk 0:01:09.2]} 25... Rxe1+ {[%clk 0:01:36]} 26.
Nxe1 {[%clk 0:01:02.9]} 26... Rxb2 {[%clk 0:01:32.8]} 27. Qa4 {[%clk 0:00:24]}
27... Bf5 {[%clk 0:01:07.6]} 28. Bxf5 {[%clk 0:00:06.8]} 28... Qxf5 {[%clk
0:01:08.5]} 29. Nd3 {[%clk 0:00:06.3]} 29... Rb7 {[%clk 0:00:53.6]} 30. Qe8+
{[%clk 0:00:03.9]} 30... Kh7 {[%clk 0:00:52.8]} 31. c6 {[%clk 0:00:04.8]} 31...
Rc7 {[%clk 0:00:51.1]} 32. Qe3 {[%clk 0:00:02.1]} 32... Qd5 {[%clk 0:00:31.7]}
0-1

[Event "Late-Titled-Tuesday-Blitz-January-23-2024"]
[Site "Chess.com"]
[Date "2024.01.23"]
[Round "6"]
[White "tptagain"]
[Black "cthulhuuu"]
[Result "1-0"]
[WhiteElo "2933"]
[BlackElo "2478"]
[TimeControl "180+1"]
[EndTime "15:04:36 PST"]
[Termination "tptagain won on time"]

1. Nf3 {[%clk 0:03:00.9]} 1... Nf6 {[%clk 0:02:59.8]} 2. b3 {[%clk 0:03:01]}
2... g6 {[%clk 0:03:00.2]} 3. Bb2 {[%clk 0:03:01.6]} 3... Bg7 {[%clk 0:03:00.9]}
4. g3 {[%clk 0:03:02.2]} 4... O-O {[%clk 0:03:01.5]} 5. Bg2 {[%clk 0:03:02.7]}
5... d6 {[%clk 0:03:01.8]} 6. d4 {[%clk 0:03:02.9]} 6... Re8 {[%clk 0:03:01.7]}
7. O-O {[%clk 0:03:02.8]} 7... c6 {[%clk 0:03:02.2]} 8. c4 {[%clk 0:03:02.3]}
8... Nbd7 {[%clk 0:03:02.4]} 9. Nc3 {[%clk 0:02:58.6]} 9... e5 {[%clk
0:03:02.3]} 10. e3 {[%clk 0:02:58.2]} 10... e4 {[%clk 0:03:00.3]} 11. Nd2 {[%clk
0:02:56.1]} 11... d5 {[%clk 0:03:00.6]} 12. Rc1 {[%clk 0:02:53.2]} 12... Nf8
{[%clk 0:02:52.7]} 13. b4 {[%clk 0:02:49.2]} 13... Bg4 {[%clk 0:02:20.9]} 14.
Qb3 {[%clk 0:02:43.5]} 14... Qd7 {[%clk 0:02:21]} 15. Na4 {[%clk 0:02:21.1]}
15... Ne6 {[%clk 0:01:52.6]} 16. cxd5 {[%clk 0:02:11.8]} 16... cxd5 {[%clk
0:01:50.5]} 17. Nc5 {[%clk 0:02:11.7]} 17... Nxc5 {[%clk 0:01:50.6]} 18. dxc5
{[%clk 0:02:12.2]} 18... Bh3 {[%clk 0:01:38.4]} 19. b5 {[%clk 0:02:09.7]} 19...
h5 {[%clk 0:01:29.3]} 20. c6 {[%clk 0:02:05.3]} 20... bxc6 {[%clk 0:01:30.2]}
21. bxc6 {[%clk 0:02:05.6]} 21... Qf5 {[%clk 0:01:29.7]} 22. Bxh3 {[%clk
0:01:56.2]} 22... Qxh3 {[%clk 0:01:25.9]} 23. Bxf6 {[%clk 0:01:56.6]} 23... Bxf6
{[%clk 0:01:25.9]} 24. Qxd5 {[%clk 0:01:51.6]} 24... Re5 {[%clk 0:00:38.2]} 25.
Qc4 {[%clk 0:01:30.2]} 25... Qg4 {[%clk 0:00:17.5]} 26. Kg2 {[%clk 0:01:02.1]}
26... Rc8 {[%clk 0:00:11.4]} 27. h3 {[%clk 0:00:56]} 27... Qf5 {[%clk
0:00:08.5]} 28. Rc2 {[%clk 0:00:39.6]} 28... Re6 {[%clk 0:00:06.1]} 29. Qa6
{[%clk 0:00:39.1]} 29... Rd6 {[%clk 0:00:03.6]} 30. Rfc1 {[%clk 0:00:32.7]} 1-0

[Event "Late-Titled-Tuesday-Blitz-January-23-2024"]
[Site "Chess.com"]
[Date "2024.01.23"]
[Round "6"]
[White "shimastream"]
[Black "DavidGavrilescu18"]
[Result "1-0"]
[WhiteElo "3009"]
[BlackElo "2814"]
[TimeControl "180+1"]
[EndTime "15:04:40 PST"]
[Termination "shimastream won by checkmate"]

1. e4 {[%clk 0:02:54]} 1... c5 {[%clk 0:02:57.8]} 2. Nf3 {[%clk 0:02:49.3]} 2...
e6 {[%clk 0:02:58.1]} 3. g3 {[%clk 0:02:44.8]} 3... Nc6 {[%clk 0:02:54.2]} 4.
Bg2 {[%clk 0:02:44.2]} 4... Nf6 {[%clk 0:02:52]} 5. Qe2 {[%clk 0:02:44]} 5... d5
{[%clk 0:02:47.8]} 6. e5 {[%clk 0:02:40.6]} 6... Nd7 {[%clk 0:02:43]} 7. d3
{[%clk 0:02:41.5]} 7... Qc7 {[%clk 0:02:30.9]} 8. Bf4 {[%clk 0:02:41]} 8... Be7
{[%clk 0:02:17.1]} 9. h4 {[%clk 0:02:38.1]} 9... b5 {[%clk 0:02:16.9]} 10. h5
{[%clk 0:02:34.7]} 10... h6 {[%clk 0:02:14.8]} 11. O-O {[%clk 0:02:28.2]} 11...
a5 {[%clk 0:02:13.7]} 12. a4 {[%clk 0:02:25.5]} 12... bxa4 {[%clk 0:02:13.7]}
13. c4 {[%clk 0:02:21.4]} 13... dxc4 {[%clk 0:02:07]} 14. dxc4 {[%clk
0:02:20.3]} 14... Bb7 {[%clk 0:02:07.6]} 15. Nc3 {[%clk 0:02:18.7]} 15... Nd4
{[%clk 0:02:03]} 16. Nxd4 {[%clk 0:02:18.4]} 16... Bxg2 {[%clk 0:01:59.8]} 17.
Nxe6 {[%clk 0:02:14.3]} 17... Qb7 {[%clk 0:01:47]} 18. Nxg7+ {[%clk 0:02:13.8]}
18... Kf8 {[%clk 0:01:47.4]} 19. Nf5 {[%clk 0:02:13.9]} 19... Bh3 {[%clk
0:01:47.2]} 20. Ne3 {[%clk 0:02:09.1]} 20... Bxf1 {[%clk 0:01:46.7]} 21. Rxf1
{[%clk 0:02:10]} 21... Bg5 {[%clk 0:01:44.8]} 22. Bxg5 {[%clk 0:01:59.4]} 22...
hxg5 {[%clk 0:01:45.7]} 23. Ned5 {[%clk 0:01:44.3]} 23... Re8 {[%clk 0:01:43.1]}
24. f4 {[%clk 0:01:43.2]} 24... gxf4 {[%clk 0:01:41.4]} 25. gxf4 {[%clk
0:01:44.1]} 25... Re6 {[%clk 0:01:30.5]} 26. Ne4 {[%clk 0:01:42.5]} 26... Reh6
{[%clk 0:01:25.8]} 27. Ng3 {[%clk 0:01:42.1]} 27... Rg8 {[%clk 0:01:21.8]} 28.
Kh2 {[%clk 0:01:41]} 28... Qc8 {[%clk 0:01:00.4]} 29. Nf5 {[%clk 0:01:38.5]}
29... Rh7 {[%clk 0:00:46]} 30. Nfe7 {[%clk 0:01:36.3]} 30... Qd8 {[%clk
0:00:42.7]} 31. f5 {[%clk 0:01:18.3]} 31... Rg5 {[%clk 0:00:40.6]} 32. Ng6+
{[%clk 0:01:10.3]} 32... Kg7 {[%clk 0:00:19.5]} 33. f6+ {[%clk 0:01:10.1]} 33...
Kh6 {[%clk 0:00:20]} 34. Nh4 {[%clk 0:01:04.8]} 34... Rxh5 {[%clk 0:00:08.2]}
35. Qe3+ {[%clk 0:00:54.9]} 35... Rg5 {[%clk 0:00:08.6]} 36. Rg1 {[%clk
0:00:50.4]} 36... Qg8 {[%clk 0:00:07.2]} 37. Ne7 {[%clk 0:00:47.2]} 37... Kh5
{[%clk 0:00:04.2]} 38. Qh3 {[%clk 0:00:41.1]} 38... Rxg1 {[%clk 0:00:03.6]} 39.
Nf3# {[%clk 0:00:40.8]} 1-0

[Event "Late-Titled-Tuesday-Blitz-January-23-2024"]
[Site "Chess.com"]
[Date "2024.01.23"]
[Round "6"]
[White "Statham_01"]
[Black "BeanScreen"]
[Result "1-0"]
[WhiteElo "2559"]
[BlackElo "2721"]
[TimeControl "180+1"]
[EndTime "15:04:41 PST"]
[Termination "Statham_01 won by resignation"]

1. e4 {[%clk 0:02:44.5]} 1... e5 {[%clk 0:02:59.7]} 2. Nf3 {[%clk 0:02:44.5]}
2... Nc6 {[%clk 0:03:00.4]} 3. Nc3 {[%clk 0:02:42.4]} 3... Nf6 {[%clk
0:03:00.1]} 4. Be2 {[%clk 0:02:42.8]} 4... Bb4 {[%clk 0:02:56.9]} 5. Nd5 {[%clk
0:02:42.1]} 5... Bc5 {[%clk 0:02:51.3]} 6. c3 {[%clk 0:02:42]} 6... Nxe4 {[%clk
0:02:46.8]} 7. d4 {[%clk 0:02:41.4]} 7... Bb6 {[%clk 0:02:35.6]} 8. Bd3 {[%clk
0:02:38.2]} 8... Nd6 {[%clk 0:02:21.6]} 9. Bg5 {[%clk 0:02:17.2]} 9... f6 {[%clk
0:02:21.2]} 10. Nxe5 {[%clk 0:01:57.1]} 10... Nxe5 {[%clk 0:02:14.2]} 11. dxe5
{[%clk 0:01:43.9]} 11... fxg5 {[%clk 0:02:13.7]} 12. exd6 {[%clk 0:01:21.2]}
12... O-O {[%clk 0:02:13.7]} 13. Ne7+ {[%clk 0:00:55.9]} 13... Kh8 {[%clk
0:02:13.2]} 14. Qh5 {[%clk 0:00:52.1]} 14... g6 {[%clk 0:01:34.2]} 15. Nxg6+
{[%clk 0:00:28.9]} 15... Kg7 {[%clk 0:01:31.6]} 16. Nxf8 {[%clk 0:00:22.1]}
16... Qf6 {[%clk 0:01:02.2]} 17. O-O {[%clk 0:00:15.1]} 17... Kxf8 {[%clk
0:01:00.4]} 18. Rae1 {[%clk 0:00:14.8]} 18... Qf7 {[%clk 0:00:23.9]} 19. Qh6+
{[%clk 0:00:14.5]} 19... Qg7 {[%clk 0:00:14.9]} 20. Re8+ {[%clk 0:00:13.5]}
20... Kxe8 {[%clk 0:00:15.6]} 21. Qxg7 {[%clk 0:00:13.5]} 21... cxd6 {[%clk
0:00:16.3]} 22. Qg8+ {[%clk 0:00:11.8]} 22... Ke7 {[%clk 0:00:16.2]} 23. Qxg5+
{[%clk 0:00:11.5]} 23... Kf7 {[%clk 0:00:15]} 24. Bc4+ {[%clk 0:00:11.9]} 24...
d5 {[%clk 0:00:13.8]} 25. Bxd5+ {[%clk 0:00:12]} 25... Kf8 {[%clk 0:00:13.6]}
26. Qd8+ {[%clk 0:00:11.8]} 26... Kg7 {[%clk 0:00:13.6]} 27. Qg5+ {[%clk
0:00:11.6]} 27... Kf8 {[%clk 0:00:13.6]} 28. Qf6+ {[%clk 0:00:11.7]} 28... Ke8
{[%clk 0:00:13.5]} 29. Re1+ {[%clk 0:00:12.3]} 1-0

[Event "Late-Titled-Tuesday-Blitz-January-23-2024"]
[Site "Chess.com"]
[Date "2024.01.23"]
[Round "6"]
[White "GP9isback23"]
[Black "Hirna2005"]
[Result "0-1"]
[WhiteElo "2610"]
[BlackElo "2316"]
[TimeControl "180+1"]
[EndTime "15:04:42 PST"]
[Termination "Hirna2005 won on time"]

1. d4 {[%clk 0:02:56.2]} 1... g6 {[%clk 0:03:00.4]} 2. Nf3 {[%clk 0:02:56.2]}
2... Bg7 {[%clk 0:03:01]} 3. e3 {[%clk 0:02:57.1]} 3... d6 {[%clk 0:03:01.3]} 4.
Be2 {[%clk 0:02:58]} 4... Nf6 {[%clk 0:03:00.8]} 5. O-O {[%clk 0:02:58.9]} 5...
O-O {[%clk 0:03:00.8]} 6. b4 {[%clk 0:02:59.7]} 6... a5 {[%clk 0:03:00.1]} 7. b5
{[%clk 0:03:00]} 7... c5 {[%clk 0:02:56.9]} 8. bxc6 {[%clk 0:02:52.7]} 8... bxc6
{[%clk 0:02:52.1]} 9. Bb2 {[%clk 0:02:47.6]} 9... Ba6 {[%clk 0:02:47.4]} 10. c4
{[%clk 0:02:46.1]} 10... d5 {[%clk 0:02:43.8]} 11. Nbd2 {[%clk 0:02:44]} 11...
Nbd7 {[%clk 0:02:41]} 12. Qc2 {[%clk 0:02:42.1]} 12... Rb8 {[%clk 0:02:33.8]}
13. Ba3 {[%clk 0:02:34.4]} 13... Re8 {[%clk 0:02:25.3]} 14. Rfc1 {[%clk
0:02:31.2]} 14... e5 {[%clk 0:02:21.4]} 15. Bd6 {[%clk 0:02:25.1]} 15... Rc8
{[%clk 0:02:12.1]} 16. Nxe5 {[%clk 0:02:16.8]} 16... Nxe5 {[%clk 0:02:07.7]} 17.
Bxe5 {[%clk 0:02:15.7]} 17... c5 {[%clk 0:01:50.4]} 18. Qa4 {[%clk 0:02:03.7]}
18... cxd4 {[%clk 0:01:23.7]} 19. Bxd4 {[%clk 0:02:00.1]} 19... dxc4 {[%clk
0:01:10.2]} 20. Nxc4 {[%clk 0:01:44.2]} 20... Ne4 {[%clk 0:01:06.6]} 21. Bxg7
{[%clk 0:01:34.7]} 21... Kxg7 {[%clk 0:01:06.1]} 22. Bf1 {[%clk 0:01:14.6]}
22... Qf6 {[%clk 0:00:56]} 23. f3 {[%clk 0:01:12]} 23... Bxc4 {[%clk 0:00:45.8]}
24. Bxc4 {[%clk 0:01:00.3]} 24... Nd2 {[%clk 0:00:40.8]} 25. Bb5 {[%clk
0:00:16.3]} 25... Rxe3 {[%clk 0:00:37.4]} 26. Bf1 {[%clk 0:00:10]} 26... Nxf1
{[%clk 0:00:17.7]} 27. Kxf1 {[%clk 0:00:02.3]} 27... Qa6+ {[%clk 0:00:16.1]} 28.
Kg1 {[%clk 0:00:02.4]} 28... Qb6 {[%clk 0:00:16.3]} 0-1

[Event "Late-Titled-Tuesday-Blitz-January-23-2024"]
[Site "Chess.com"]
[Date "2024.01.23"]
[Round "6"]
[White "zverr1"]
[Black "TanitoluwaAps116"]
[Result "0-1"]
[WhiteElo "2516"]
[BlackElo "2713"]
[TimeControl "180+1"]
[EndTime "15:04:42 PST"]
[Termination "TanitoluwaAps116 won by checkmate"]

1. e4 {[%clk 0:03:00.9]} 1... c5 {[%clk 0:02:56.3]} 2. Nf3 {[%clk 0:03:00.2]}
2... e6 {[%clk 0:02:54.7]} 3. b3 {[%clk 0:03:00]} 3... Nc6 {[%clk 0:02:53.5]} 4.
Bb2 {[%clk 0:02:55]} 4... d5 {[%clk 0:02:53.5]} 5. Bb5 {[%clk 0:02:51.6]} 5...
Nf6 {[%clk 0:02:52.4]} 6. exd5 {[%clk 0:02:49.2]} 6... exd5 {[%clk 0:02:51.4]}
7. Qe2+ {[%clk 0:02:44.8]} 7... Be7 {[%clk 0:02:51.6]} 8. Bxf6 {[%clk
0:02:44.3]} 8... gxf6 {[%clk 0:02:52.5]} 9. Nc3 {[%clk 0:02:38.6]} 9... Be6
{[%clk 0:02:52.5]} 10. Bxc6+ {[%clk 0:02:26.9]} 10... bxc6 {[%clk 0:02:52.3]}
11. Qa6 {[%clk 0:02:23.3]} 11... Qc7 {[%clk 0:02:50.3]} 12. O-O-O {[%clk
0:02:20.8]} 12... Rg8 {[%clk 0:02:36.6]} 13. Rhg1 {[%clk 0:02:11.8]} 13... Rg4
{[%clk 0:02:18.6]} 14. Rde1 {[%clk 0:02:03.6]} 14... Kd7 {[%clk 0:02:10.7]} 15.
g3 {[%clk 0:01:53.4]} 15... Rb4 {[%clk 0:02:03]} 16. Na4 {[%clk 0:01:17.8]}
16... Rab8 {[%clk 0:01:56.1]} 17. Qe2 {[%clk 0:00:31.8]} 17... Qa5 {[%clk
0:01:44.9]} 18. d3 {[%clk 0:00:31.2]} 18... Rxa4 {[%clk 0:01:29.1]} 19. bxa4
{[%clk 0:00:31]} 19... Qc3 {[%clk 0:01:25.9]} 20. Qe3 {[%clk 0:00:08.2]} 20...
Bd6 {[%clk 0:00:59.6]} 21. h4 {[%clk 0:00:05.9]} 21... Bg4 {[%clk 0:00:38.2]}
22. d4 {[%clk 0:00:04.8]} 22... cxd4 {[%clk 0:00:30.8]} 23. Qxc3 {[%clk
0:00:04.4]} 23... dxc3 {[%clk 0:00:30.6]} 24. Re3 {[%clk 0:00:02]} 24... Ba3+
{[%clk 0:00:21.3]} 25. Kd1 {[%clk 0:00:01.3]} 25... Rb1+ {[%clk 0:00:22.2]} 26.
Ke2 {[%clk 0:00:01.4]} 26... Rxg1 {[%clk 0:00:23.1]} 27. Rxc3 {[%clk 0:00:01.1]}
27... Bb4 {[%clk 0:00:22.6]} 28. Rb3 {[%clk 0:00:01.4]} 28... Re1+ {[%clk
0:00:21.6]} 29. Kd3 {[%clk 0:00:02]} 29... Re4 {[%clk 0:00:19.5]} 30. Nd2 {[%clk
0:00:01.7]} 30... Be2# {[%clk 0:00:19.3]} 0-1

[Event "Late-Titled-Tuesday-Blitz-January-23-2024"]
[Site "Chess.com"]
[Date "2024.01.23"]
[Round "6"]
[White "TimGrutter03"]
[Black "messiboca"]
[Result "0-1"]
[WhiteElo "2566"]
[BlackElo "2774"]
[TimeControl "180+1"]
[EndTime "15:04:46 PST"]
[Termination "messiboca won on time"]

1. e4 {[%clk 0:02:27.5]} 1... e5 {[%clk 0:02:57.8]} 2. Nf3 {[%clk 0:02:27.3]}
2... Nc6 {[%clk 0:02:56.2]} 3. Nc3 {[%clk 0:02:26.4]} 3... Nf6 {[%clk 0:02:54]}
4. h3 {[%clk 0:02:26.6]} 4... g6 {[%clk 0:02:29.8]} 5. Bb5 {[%clk 0:02:24]} 5...
Bg7 {[%clk 0:02:28.8]} 6. Bxc6 {[%clk 0:02:22.4]} 6... bxc6 {[%clk 0:02:09.4]}
7. Nxe5 {[%clk 0:02:20.8]} 7... Qe7 {[%clk 0:01:57.7]} 8. d4 {[%clk 0:02:18]}
8... c5 {[%clk 0:01:58]} 9. Nf3 {[%clk 0:01:18.4]} 9... Nxe4 {[%clk 0:01:44.6]}
10. Qe2 {[%clk 0:01:06.2]} 10... Nxc3 {[%clk 0:01:34.2]} 11. Qxe7+ {[%clk
0:01:07.1]} 11... Kxe7 {[%clk 0:01:34.2]} 12. bxc3 {[%clk 0:01:08]} 12... Ba6
{[%clk 0:01:19.8]} 13. Ba3 {[%clk 0:01:06.6]} 13... d6 {[%clk 0:01:12.2]} 14.
O-O-O {[%clk 0:01:05.9]} 14... cxd4 {[%clk 0:01:12.6]} 15. Rhe1+ {[%clk
0:01:00.5]} 15... Kd7 {[%clk 0:01:11.1]} 16. cxd4 {[%clk 0:00:57.9]} 16... Rab8
{[%clk 0:01:02.4]} 17. Bb2 {[%clk 0:00:42.6]} 17... Bc4 {[%clk 0:00:42.6]} 18.
Kb1 {[%clk 0:00:33.6]} 18... Rb6 {[%clk 0:00:35.1]} 19. Nd2 {[%clk 0:00:15.1]}
19... Bd5 {[%clk 0:00:35.1]} 20. f3 {[%clk 0:00:11]} 20... Rhb8 {[%clk
0:00:34.3]} 21. Nb3 {[%clk 0:00:11.3]} 21... a5 {[%clk 0:00:34.7]} 22. a4 {[%clk
0:00:07.5]} 22... Bxb3 {[%clk 0:00:34.5]} 23. cxb3 {[%clk 0:00:08.4]} 23... Rxb3
{[%clk 0:00:34.9]} 24. Re2 {[%clk 0:00:09.1]} 24... c5 {[%clk 0:00:35.2]} 25.
Ka2 {[%clk 0:00:08.1]} 25... R3b4 {[%clk 0:00:32.2]} 26. Ka3 {[%clk 0:00:05.3]}
26... c4 {[%clk 0:00:22.5]} 27. Rc2 {[%clk 0:00:05.2]} 27... d5 {[%clk
0:00:22.5]} 28. Re1 {[%clk 0:00:03.8]} 28... Bf8 {[%clk 0:00:22.9]} 29. Ka2
{[%clk 0:00:03.5]} 29... Rxa4+ {[%clk 0:00:23.2]} 30. Kb1 {[%clk 0:00:04]} 30...
Rab4 {[%clk 0:00:23.7]} 31. Kc1 {[%clk 0:00:04.4]} 31... Rb3 {[%clk 0:00:24.1]}
32. Rc3 {[%clk 0:00:03.6]} 32... Rxb2 {[%clk 0:00:23.4]} 0-1

[Event "Late-Titled-Tuesday-Blitz-January-23-2024"]
[Site "Chess.com"]
[Date "2024.01.23"]
[Round "6"]
[White "OneTrickPony_82"]
[Black "KorolDimitriy75"]
[Result "1-0"]
[WhiteElo "2492"]
[BlackElo "2347"]
[TimeControl "180+1"]
[EndTime "15:04:46 PST"]
[Termination "OneTrickPony_82 won on time"]

1. d4 {[%clk 0:03:00.9]} 1... Nf6 {[%clk 0:02:59.2]} 2. c4 {[%clk 0:03:01.1]}
2... c5 {[%clk 0:02:58.3]} 3. d5 {[%clk 0:03:01.7]} 3... b5 {[%clk 0:02:58.6]}
4. cxb5 {[%clk 0:03:02.4]} 4... a6 {[%clk 0:02:59.1]} 5. bxa6 {[%clk 0:03:03.1]}
5... Bxa6 {[%clk 0:02:59.6]} 6. Nc3 {[%clk 0:03:02.6]} 6... g6 {[%clk 0:03:00]}
7. e4 {[%clk 0:03:03.2]} 7... Bxf1 {[%clk 0:02:59]} 8. Kxf1 {[%clk 0:03:03.9]}
8... d6 {[%clk 0:02:59.8]} 9. g3 {[%clk 0:03:04.3]} 9... Bg7 {[%clk 0:03:00.1]}
10. Kg2 {[%clk 0:03:04.8]} 10... O-O {[%clk 0:03:00.8]} 11. Nf3 {[%clk
0:03:05.3]} 11... Nbd7 {[%clk 0:03:00.8]} 12. a4 {[%clk 0:03:05.8]} 12... Qb8
{[%clk 0:03:01]} 13. Re1 {[%clk 0:03:02.4]} 13... Qb4 {[%clk 0:03:01.4]} 14. Qc2
{[%clk 0:02:59]} 14... Nb6 {[%clk 0:02:51]} 15. Ra3 {[%clk 0:02:36.2]} 15...
Rfb8 {[%clk 0:02:21.9]} 16. Rb3 {[%clk 0:02:31.2]} 16... Qc4 {[%clk 0:01:47.6]}
17. Bg5 {[%clk 0:01:32.2]} 17... h6 {[%clk 0:01:05.4]} 18. Nd2 {[%clk
0:01:29.9]} 18... Qxb3 {[%clk 0:00:16.4]} 19. Nxb3 {[%clk 0:01:18.4]} 19... hxg5
{[%clk 0:00:16.6]} 20. Nd2 {[%clk 0:01:13.4]} 20... Nfd7 {[%clk 0:00:14.7]} 21.
b3 {[%clk 0:01:11.6]} 21... Rc8 {[%clk 0:00:10.1]} 22. Nb5 {[%clk 0:01:10]}
22... c4 {[%clk 0:00:08]} 23. Nxc4 {[%clk 0:01:08]} 23... Nxc4 {[%clk
0:00:06.9]} 24. bxc4 {[%clk 0:01:07.7]} 24... Nc5 {[%clk 0:00:07.3]} 25. Qd2
{[%clk 0:00:55.2]} 25... Rxa4 {[%clk 0:00:05.8]} 26. Qxg5 {[%clk 0:00:53.3]}
26... Bf6 {[%clk 0:00:05.2]} 27. Qf4 {[%clk 0:00:39.1]} 27... Rxc4 {[%clk
0:00:04.3]} 28. Na7 {[%clk 0:00:39.2]} 28... Ra8 {[%clk 0:00:03.3]} 29. Nc6
{[%clk 0:00:38.4]} 29... Ra2 {[%clk 0:00:02.8]} 30. Rb1 {[%clk 0:00:30.2]} 30...
Rcc2 {[%clk 0:00:01.2]} 31. e5 {[%clk 0:00:20.5]} 1-0